bitfinex-derivatives/quotes_SOLF0:USTF0_20260310
["timestamp","ask_amount","ask_price","bid_price","bid_amount"]
[1773166302320,4.15151551,87.648,87.585,4.41923638]
[1773166302518,7.00310146,87.647,87.585,4.41923638]
[1773166302822,4.15151551,87.645,87.562,4.41923638]
[1773166303024,8.92610624,87.65,87.562,4.41923638]
[1773166303025,4.15151551,87.643,87.562,4.41923638]
[1773166303224,4.15151551,87.641,87.562,4.41923638]
[1773166303424,4.15151551,87.639,87.562,4.41923638]
[1773166303626,4.15151551,87.637,87.562,4.41923638]
[1773166303822,4.15151551,87.635,87.562,4.41923638]
[1773166304024,4.15151551,87.633,87.562,4.41923638]
[1773166304222,4.15151551,87.631,87.578,10.274]
[1773166304420,2.85158595,87.63,87.577,4.41923638]
[1773166304625,2.85158595,87.629,87.577,4.41923638]
[1773166304826,2.85158595,87.628,87.577,4.41923638]
[1773166305025,10.269,87.626,87.585,10.274]
[1773166305222,2.85158595,87.625,87.585,10.274]
[1773166305423,2.85158595,87.624,87.585,10.274]
[1773166305724,4.15151551,87.649,87.585,10.274]
[1773166306026,4.15151551,87.647,87.56,4.41923638]
[1773166306226,4.15151551,87.645,87.56,4.41923638]
[1773166306427,4.15151551,87.643,87.56,4.41923638]
[1773166306729,10.271,87.606,87.56,4.41923638]
[1773166307324,4.27880525,87.597,87.55,190.20264643]
[1773166307532,4.27880525,87.595,87.55,190.20264643]
[1773166307721,7.13200851,87.594,87.55,190.20264643]
[1773166307927,10.273,87.59,87.55,190.20264643]
[1773166308229,10.273,87.59,87.537,4.5090589]
[1773166309429,4.27880525,87.594,87.542,4.44879101]
[1773166310429,10.273,87.593,87.547,14.72679101]
[1773166310636,10.273,87.593,87.547,4.44879101]
[1773166312134,10.274,87.586,87.547,4.44879101]
[1773166312728,14.55180525,87.594,87.547,4.44879101]
[1773166312930,2.85327318,87.593,87.547,4.44879101]
[1773166313227,14.55180525,87.594,87.547,4.44879101]
[1773166313428,10.273,87.592,87.547,4.44879101]
[1773166315336,10.272,87.602,87.55,4.44879101]
[1773166315638,4.25577952,87.61,87.55,4.44879101]
[1773166315937,10.271,87.607,87.56,10.277]
[1773166316926,10.272,87.599,87.55,4.44879101]
[1773166317132,10.272,87.599,87.553,4.44879101]
[1773166317333,4.25577952,87.61,87.553,4.44879101]
[1773166317534,2.85301205,87.609,87.553,4.44879101]
[1773166317833,10.271,87.606,87.553,4.44879101]
[1773166318034,2.85291086,87.605,87.553,4.44879101]
[1773166318232,10.271,87.606,87.553,4.44879101]
[1773166318426,10.27,87.613,87.567,4.44879101]
[1773166319027,10.27,87.62,87.576,4.44879101]
[1773166319232,4.25577952,87.625,87.576,4.44879101]
[1773166319434,2.85236221,87.624,87.576,4.44879101]
[1773166319628,13.12141104,87.623,87.576,4.44879101]
[1773166319833,2.85241104,87.622,87.576,4.44879101]
[1773166320034,2.85241104,87.621,87.576,4.44879101]
[1773166320234,2.85241104,87.62,87.576,4.44879101]
[1773166320533,4.25577952,87.61,87.557,4.44879101]
[1773166321733,4.25577952,87.605,87.531,4.44879101]
[1773166321932,2.85278612,87.604,87.531,4.44879101]
[1773166322133,2.85268687,87.629,87.583,10.274]
[1773166322336,2.85268687,87.628,87.575,4.44879101]
[1773166322636,2.85268687,87.627,87.575,4.44879101]
[1773166322836,4.25577952,87.641,87.575,4.44879101]
[1773166322837,2.85268687,87.626,87.575,4.44879101]
[1773166323134,7.10846639,87.625,87.551,4.44879101]
[1773166323334,2.85268687,87.624,87.551,4.44879101]
[1773166323533,2.85268687,87.623,87.551,4.44879101]
[1773166323833,2.85268687,87.622,87.551,4.44879101]
[1773166324034,2.85268687,87.621,87.551,4.44879101]
[1773166324334,2.85268687,87.62,87.575,10.275]
[1773166324535,2.85268687,87.619,87.575,10.275]
[1773166324736,10.269,87.624,87.575,10.275]
[1773166325030,2.852479,87.623,87.575,10.275]
[1773166325238,2.852479,87.622,87.575,10.275]
[1773166325435,10.269,87.624,87.575,10.275]
[1773166325436,2.852479,87.621,87.575,10.275]
[1773166325637,2.852479,87.62,87.575,10.275]
[1773166325837,10.269,87.624,87.575,10.275]
[1773166325838,2.852479,87.619,87.575,10.275]
[1773166326036,10.269,87.624,87.575,10.275]
[1773166326341,10.269,87.622,87.575,10.275]
[1773166326534,2.85247914,87.621,87.581,10.274]
[1773166326736,4.25577952,87.625,87.581,10.274]
[1773166326938,2.8524303,87.624,87.581,10.274]
[1773166327140,2.85242919,87.623,87.581,10.274]
[1773166327338,4.25577952,87.642,87.582,4.44879101]
[1773166327536,4.25577952,87.658,87.582,4.44879101]
[1773166327738,3.33261532,87.65,87.601,4.44879101]
[1773166328044,2.85192056,87.649,87.602,10.272]
[1773166328239,2.85192056,87.648,87.602,10.272]
[1773166328438,10.267,87.643,87.602,10.272]
[1773166328739,3.33261532,87.65,87.602,10.272]
[1773166328944,2.85167566,87.649,87.602,10.272]
[1773166329239,13.11767566,87.648,87.602,10.272]
[1773166329534,4.25577952,87.658,87.602,10.272]
[1773166329535,2.85167566,87.647,87.602,10.272]
[1773166329840,4.25577952,87.656,87.602,10.272]
[1773166330043,4.25577952,87.654,87.602,10.272]
[1773166330240,4.25577952,87.652,87.602,10.272]
[1773166330532,10.267,87.645,87.602,10.272]
[1773166330939,4.25577952,87.651,87.602,10.272]
[1773166331141,2.85164069,87.65,87.608,4.44879101]
[1773166331335,10.266,87.653,87.608,4.44879101]
[1773166331536,4.25577952,87.667,87.608,4.44879101]
[1773166331537,10.265,87.662,87.608,4.44879101]
[1773166331835,4.25577952,87.667,87.608,4.44879101]
[1773166331836,4.25577952,87.667,87.623,10.269]
[1773166332035,4.25577952,87.665,87.608,4.44879101]
[1773166332237,2.85114478,87.664,87.608,4.44879101]
[1773166332534,2.85114478,87.663,87.608,4.44879101]
[1773166332741,2.85114478,87.662,87.608,4.44879101]
[1773166332941,2.85114478,87.661,87.608,4.44879101]
[1773166333139,4.25577952,87.665,87.615,14.71879101]
[1773166333332,4.25577952,87.665,87.59,8.92731576]
[1773166333333,4.25577952,87.665,87.616,4.44879101]
[1773166334039,10.265,87.662,87.619,10.27]
[1773166334640,4.25577952,87.665,87.619,10.27]
[1773166335339,4.25577952,87.68,87.624,4.44879101]
[1773166335544,2.85093784,87.679,87.624,4.44879101]
[1773166335843,2.85093784,87.678,87.624,4.44879101]
[1773166336036,2.85093784,87.677,87.624,4.44879101]
[1773166336237,2.85093784,87.676,87.624,4.44879101]
[1773166336437,10.263,87.678,87.628,14.71779101]
[1773166336644,2.85073415,87.677,87.628,14.71779101]
[1773166336943,2.85073415,87.676,87.628,14.71779101]
[1773166337142,2.85073415,87.675,87.628,14.71779101]
[1773166337344,10.264,87.67,87.628,4.44879101]
[1773166337545,4.25577952,87.68,87.628,4.44879101]
[1773166337744,7.10651667,87.679,87.628,4.44879101]
[1773166337945,2.85073715,87.678,87.628,4.44879101]
[1773166338245,2.85001183,87.709,87.644,4.44879101]
[1773166338546,4.25577952,87.726,87.644,4.44879101]
[1773166338747,4.25577952,87.722,87.641,4.44879101]
[1773166338943,4.25577952,87.72,87.641,4.44879101]
[1773166339138,4.25577952,87.718,87.641,4.44879101]
[1773166339339,4.11409351,87.682,87.626,4.29270474]
[1773166340050,4.11409351,87.682,87.64,10.267]
[1773166341955,10.262,87.689,87.64,10.267]
[1773166342657,4.11409351,87.68,87.631,10.268]
[1773166342854,4.11409351,87.68,87.626,4.29270474]
[1773166343758,10.263,87.677,87.628,10.269]
[1773166344060,4.11409351,87.662,87.611,10.271]
[1773166344358,4.11409351,87.662,87.608,4.29270474]
[1773166345253,4.11409351,87.661,87.592,4.29270474]
[1773166345459,4.11409351,87.659,87.592,4.29270474]
[1773166345654,4.11409351,87.658,87.592,4.29270474]
[1773166345957,4.11409351,87.658,87.607,10.271]
[1773166346349,4.11409351,87.658,87.592,4.29270474]
[1773166347457,4.11409351,87.649,87.598,10.272]
[1773166348061,4.11409351,87.645,87.592,4.29270474]
[1773166349354,4.11409351,87.645,87.601,10.272]
[1773166350661,2.85040727,87.656,87.606,14.56370474]
[1773166350856,2.85040727,87.655,87.606,14.56370474]
[1773166351162,4.11409351,87.653,87.606,14.56370474]
[1773166351462,4.11409351,87.652,87.606,14.56370474]
[1773166352359,14.38009351,87.652,87.606,14.56370474]
[1773166354064,4.11409351,87.649,87.606,10.271]
[1773166354364,4.11409351,87.649,87.598,10.272]
[1773166354567,4.11409351,87.649,87.586,4.29270474]
[1773166354765,10.265,87.656,87.586,4.29270474]
[1773166354959,4.11409351,87.666,87.601,4.29270474]
[1773166355160,4.11409351,87.664,87.601,4.29270474]
[1773166355361,4.11409351,87.662,87.601,4.29270474]
[1773166356064,4.11409351,87.643,87.566,25.28795803]
[1773166356269,4.11409351,87.641,87.566,4.29270474]
[1773166356570,4.11409351,87.639,87.566,4.29270474]
[1773166356768,2.85126735,87.638,87.566,4.29270474]
[1773166356969,4.11409351,87.636,87.588,10.273]
[1773166357164,2.85126735,87.635,87.588,10.273]
[1773166357365,2.85126735,87.634,87.588,10.273]
[1773166357567,2.85126735,87.633,87.588,10.273]
[1773166357770,4.11409351,87.63,87.571,10.275]
[1773166357963,4.11409351,87.628,87.561,4.29270474]
[1773166358364,6.96626804,87.627,87.561,4.29270474]
[1773166358672,4.11409351,87.623,87.57,10.275]
[1773166358866,4.11409351,87.621,87.57,10.275]
[1773166359568,4.11409351,87.637,87.575,4.29270474]
[1773166359769,4.11409351,87.635,87.575,4.29270474]
[1773166359968,4.11409351,87.633,87.575,4.29270474]
[1773166360170,4.11409351,87.631,87.575,4.29270474]
[1773166360371,4.11409351,87.629,87.575,4.29270474]
[1773166360566,2.85222258,87.628,87.575,4.29270474]
[1773166360767,2.85222258,87.627,87.587,10.273]
[1773166360973,2.85222258,87.626,87.587,10.273]
[1773166361172,2.85222258,87.625,87.587,10.273]
[1773166361372,2.852325,87.624,87.579,10.274]
[1773166361674,4.11409351,87.622,87.552,4.29270474]
[1773166361869,8.9229731,87.63,87.552,4.29270474]
[1773166361870,4.11409351,87.62,87.552,4.29270474]
[1773166362070,6.9664688,87.619,87.552,4.29270474]
[1773166362269,4.11409351,87.619,87.552,4.29270474]
[1773166362870,2.85241218,87.618,87.552,4.29270474]
[1773166363170,10.27,87.618,87.574,10.275]
[1773166363879,8.9229731,87.65,87.583,4.29270474]
[1773166363880,10.269,87.626,87.583,4.29270474]
[1773166364065,2.85236164,87.625,87.583,4.29270474]
[1773166364272,2.85236164,87.624,87.583,4.29270474]
[1773166364466,2.85236164,87.623,87.583,4.29270474]
[1773166364669,2.85236164,87.622,87.583,4.29270474]
[1773166364874,8.9229731,87.65,87.55,8.9229731]
[1773166364875,4.11409351,87.62,87.552,4.29270474]
[1773166365075,4.11409351,87.618,87.552,4.29270474]
[1773166365270,4.11409351,87.612,87.569,10.276]
[1773166365476,4.11409351,87.612,87.536,4.29270474]
[1773166365673,4.11409351,87.609,87.536,4.29270474]
[1773166365873,10.272,87.597,87.536,4.29270474]
[1773166367579,10.272,87.597,87.553,10.277]
[1773166367778,10.272,87.597,87.536,4.29270474]
[1773166368867,4.1595544,87.593,87.536,4.29270474]
[1773166369071,4.1595544,87.589,87.521,4.42500401]
[1773166369775,4.38015372,87.604,87.534,4.13750945]
[1773166370483,4.38015372,87.604,87.559,10.277]
[1773166371179,4.38015372,87.604,87.559,14.41450945]
[1773166372781,4.38015372,87.604,87.552,10.278]
[1773166373381,4.38015372,87.596,87.543,10.279]
[1773166373584,4.38015372,87.596,87.542,4.13750945]
[1773166374582,4.38015372,87.596,87.556,10.277]
[1773166374980,4.38015372,87.596,87.526,4.13750945]
[1773166376482,4.38015372,87.596,87.541,10.279]
[1773166377287,10.273,87.587,87.547,10.278]
[1773166378176,10.273,87.594,87.547,10.278]
[1773166378377,4.38015372,87.596,87.511,12.65013446]
[1773166378378,4.38015372,87.61,87.555,4.13750945]
[1773166380288,4.38015372,87.596,87.531,4.13750945]
[1773166380683,10.273,87.59,87.546,10.278]
[1773166380987,4.38015372,87.612,87.547,4.13750945]
[1773166381185,8.9229731,87.62,87.552,10.278]
[1773166381382,4.38015372,87.599,87.531,4.13750945]
[1773166382487,10.274,87.584,87.544,10.278]
[1773166382986,10.273,87.592,87.55,10.278]
[1773166384382,4.38015372,87.585,87.512,4.13750945]
[1773166386086,4.38015372,87.585,87.535,4.13750945]
[1773166386694,4.38015372,87.585,87.545,10.278]
[1773166386887,4.38015372,87.603,87.535,4.13750945]
[1773166387280,4.38015372,87.603,87.55,4.13750945]
[1773166388091,10.272,87.602,87.562,10.276]
[1773166388279,4.38015372,87.602,87.55,4.13750945]
[1773166388481,10.273,87.594,87.546,10.278]
[1773166389287,4.38015372,87.589,87.539,10.279]
[1773166389487,8.9229731,87.61,87.529,4.13750945]
[1773166389488,4.38015372,87.587,87.529,4.13750945]
[1773166389689,4.38015372,87.585,87.529,4.13750945]
[1773166389889,4.38015372,87.583,87.529,4.13750945]
[1773166390285,4.38015372,87.573,87.532,10.28]
[1773166393293,4.38015372,87.573,87.529,4.13750945]
[1773166393294,10.274,87.582,87.539,10.279]
[1773166393595,4.38015372,87.581,87.529,4.13750945]
[1773166393896,10.275,87.572,87.529,4.13750945]
[1773166395490,10.275,87.572,87.53,10.28]
[1773166396692,4.38015372,87.567,87.512,4.13750945]
[1773166396892,4.38015372,87.565,87.512,4.13750945]
[1773166397189,4.38015372,87.563,87.512,4.13750945]
[1773166397589,14.65615372,87.563,87.521,10.281]
[1773166398296,10.275,87.572,87.528,14.41750945]
[1773166398699,4.38015372,87.571,87.528,14.41750945]
[1773166399100,4.38015372,87.571,87.535,10.28]
[1773166399399,4.38215468,87.602,87.541,4.13786326]
[1773166399594,2.85305914,87.601,87.541,4.13786326]
[1773166399794,4.38215468,87.602,87.558,4.13786326]
[1773166400298,4.38215468,87.618,87.558,4.13786326]
[1773166400599,2.85280687,87.617,87.558,4.13786326]
[1773166400897,2.85280687,87.616,87.558,4.13786326]
[1773166401097,2.85280687,87.615,87.558,4.13786326]
[1773166401300,2.85280687,87.614,87.558,4.13786326]
[1773166401493,2.85280687,87.613,87.569,4.13786326]
[1773166401691,4.38215468,87.634,87.569,4.13786326]
[1773166401890,7.23470236,87.633,87.569,4.13786326]
[1773166402089,4.38215468,87.628,87.569,4.13786326]
[1773166402290,7.23470236,87.627,87.569,4.13786326]
[1773166402496,2.85254768,87.626,87.569,4.13786326]
[1773166402697,2.85254768,87.625,87.569,4.13786326]
[1773166402894,10.27,87.621,87.575,10.275]
[1773166403099,4.38215468,87.619,87.575,10.275]
[1773166403293,2.85254768,87.618,87.575,10.275]
[1773166403495,2.85254768,87.617,87.575,10.275]
[1773166403695,2.85254768,87.616,87.575,10.275]
[1773166403897,4.38215468,87.619,87.575,10.275]
[1773166404095,2.85255277,87.618,87.575,10.275]
[1773166404300,2.85255277,87.617,87.575,10.275]
[1773166404502,4.38215468,87.619,87.575,10.275]
[1773166404702,2.85251832,87.618,87.575,10.275]
[1773166404902,4.38215468,87.619,87.575,10.275]
[1773166405110,2.85248385,87.618,87.583,10.274]
[1773166405303,4.38215468,87.619,87.583,10.274]
[1773166405498,2.85247869,87.618,87.583,10.274]
[1773166405700,4.38215468,87.619,87.583,10.274]
[1773166405898,2.85248015,87.618,87.584,4.13786326]
[1773166406100,8.94265935,87.64,87.56,8.94265935]
[1773166406101,2.85222911,87.629,87.586,4.13786326]
[1773166406306,2.85222911,87.628,87.586,4.13786326]
[1773166406507,2.85222911,87.627,87.586,4.13786326]
[1773166406707,2.85232392,87.626,87.586,4.13786326]
[1773166406908,10.267,87.639,87.588,10.273]
[1773166407103,2.85222237,87.638,87.588,10.273]
[1773166407406,10.268,87.635,87.588,10.273]
[1773166407601,2.85222237,87.634,87.588,10.273]
[1773166407803,2.85222237,87.633,87.588,14.41086326]
[1773166408005,2.85222237,87.632,87.588,14.41086326]
[1773166408206,4.38215468,87.643,87.588,4.13786326]
[1773166408408,2.85210376,87.642,87.588,4.13786326]
[1773166408608,2.85210376,87.641,87.588,4.13786326]
[1773166408804,2.85210376,87.64,87.588,4.13786326]
[1773166409005,4.38215468,87.662,87.603,4.13786326]
[1773166409206,2.85185072,87.661,87.603,4.13786326]
[1773166409403,2.85185072,87.66,87.603,4.13786326]
[1773166409606,2.85185072,87.659,87.603,4.13786326]
[1773166409807,2.85185072,87.658,87.603,4.13786326]
[1773166410007,2.85185072,87.657,87.603,4.13786326]
[1773166410209,2.85185072,87.656,87.614,10.27]
[1773166410406,2.85185072,87.655,87.614,10.27]
[1773166410609,2.85185072,87.654,87.614,10.27]
[1773166410809,2.85185072,87.653,87.614,10.27]
[1773166411009,2.85185072,87.652,87.614,10.27]
[1773166411206,4.38215468,87.656,87.587,4.13786326]
[1773166411410,4.38215468,87.654,87.581,4.13786326]
[1773166411608,4.38215468,87.652,87.581,4.13786326]
[1773166411810,4.38215468,87.65,87.581,4.13786326]
[1773166412008,10.266,87.648,87.602,10.272]
[1773166412204,2.85149904,87.647,87.602,10.272]
[1773166412408,2.85149904,87.646,87.602,10.272]
[1773166412608,2.85149904,87.645,87.602,10.272]
[1773166412909,2.85149904,87.644,87.602,10.272]
[1773166413106,2.85176028,87.649,87.602,10.272]
[1773166413311,7.23391496,87.648,87.602,10.272]
[1773166413512,4.38215468,87.646,87.602,10.272]
[1773166413705,2.85176028,87.645,87.602,10.272]
[1773166413908,2.85176028,87.644,87.602,10.272]
[1773166414108,2.85179476,87.645,87.602,10.272]
[1773166414307,2.85182924,87.644,87.602,10.272]
[1773166414513,13.11882924,87.645,87.602,10.272]
[1773166414811,2.85182924,87.644,87.602,10.272]
[1773166415212,10.267,87.645,87.602,10.272]
[1773166416218,4.38215468,87.646,87.602,10.272]
[1773166417510,14.64915468,87.646,87.602,10.272]
[1773166418314,4.38215468,87.637,87.592,10.273]
[1773166419313,4.38215468,87.637,87.595,10.272]
[1773166419715,10.268,87.638,87.595,14.40986326]
[1773166422815,14.65015468,87.638,87.595,14.40986326]
[1773166423809,4.38215468,87.629,87.576,4.13786326]
[1773166424117,2.85182924,87.665,87.621,4.13786326]
[1773166424314,3.33281786,87.69,87.631,4.13786326]
[1773166424514,4.38215468,87.679,87.631,4.13786326]
[1773166424918,2.85182924,87.688,87.533,337.915]
[1773166424919,3.33281786,87.66,87.615,10.27]
[1773166425114,3.33281786,87.66,87.621,4.13786326]
[1773166425412,3.33281786,87.66,87.568,21.2548311]
[1773166425413,3.33281786,87.66,87.611,4.13786326]
[1773166425617,4.38215468,87.659,87.611,4.13786326]
[1773166426016,4.38215468,87.652,87.581,4.13786326]
[1773166426719,4.38215468,87.652,87.596,4.13786326]
[1773166428316,3.98804772,87.639,87.571,4.4058914]
[1773166429216,3.98804772,87.618,87.558,4.28914949]
[1773166429411,20.53,87.66,87.507,28.3397748]
[1773166429412,4.15959254,87.616,87.541,4.28914949]
[1773166429618,4.15959254,87.572,87.512,4.28914949]
[1773166430121,4.15959254,87.572,87.464,21.2548311]
[1773166430122,4.15959254,87.533,87.451,4.28914949]
[1773166430912,10.282,87.514,87.453,4.28914949]
[1773166431321,4.15959254,87.516,87.43,1.98915681]
[1773166431621,4.15959254,87.492,87.421,4.28914949]
[1773166432012,4.15959254,87.526,87.439,4.28914949]
[1773166432212,4.15959254,87.524,87.421,4.28914949]
[1773166432421,4.15959254,87.499,87.421,4.28914949]
[1773166432615,8.9252176,87.5,87.424,4.28914949]
[1773166432616,4.15959254,87.493,87.424,4.28914949]
[1773166433216,10.285,87.492,87.424,4.28914949]
[1773166433420,4.15959254,87.491,87.424,4.28914949]
[1773166433619,4.15959254,87.489,87.411,4.28914949]
[1773166433815,4.15959254,87.455,87.391,4.28914949]
[1773166434215,8.9252176,87.47,87.391,4.28914949]
[1773166434420,4.15959254,87.475,87.36,8.9252176]
[1773166434421,10.287,87.469,87.393,4.28914949]
[1773166434617,4.15959254,87.468,87.393,4.28914949]
[1773166435320,4.15959254,87.489,87.393,4.28914949]
[1773166436121,4.15959254,87.473,87.394,4.28914949]
[1773166436525,4.15959254,87.469,87.394,4.28914949]
[1773166437024,4.15959254,87.445,87.355,4.28914949]
[1773166437417,4.15959254,87.429,87.357,4.28914949]
[1773166439524,4.15959254,87.429,87.359,4.28914949]
[1773166439721,4.15959254,87.449,87.371,4.28914949]
[1773166440022,4.15959254,87.444,87.372,4.28914949]
[1773166440226,4.15959254,87.439,87.372,4.28914949]
[1773166440519,4.15959254,87.439,87.34,314.42958946]
[1773166440520,4.15959254,87.439,87.351,4.28914949]
[1773166440725,4.15959254,87.439,87.353,4.28914949]
[1773166440921,4.15959254,87.419,87.34,312.43881681]
[1773166441128,10.294,87.411,87.341,14.59114949]
[1773166441428,4.15959254,87.419,87.342,4.28914949]
[1773166441729,4.15959254,87.416,87.342,4.28914949]
[1773166442428,4.15959254,87.416,87.344,4.28914949]
[1773166442722,4.15959254,87.416,87.236,21.2548311]
[1773166442723,4.15959254,87.399,87.325,4.28914949]
[1773166442925,4.15959254,87.391,87.302,4.28914949]
[1773166443222,4.15959254,87.391,87.311,4.28914949]
[1773166443428,4.15959254,87.396,87.3,4.28914949]
[1773166443624,4.15959254,87.396,87.311,4.28914949]
[1773166444120,4.15959254,87.394,87.311,4.28914949]
[1773166444427,4.15959254,87.389,87.311,4.28914949]
[1773166444622,4.15959254,87.389,87.293,4.28914949]
[1773166444831,4.15959254,87.367,87.3,4.28914949]
[1773166445221,4.15959254,87.367,87.302,4.28914949]
[1773166445829,4.15959254,87.384,87.304,4.28914949]
[1773166446028,4.15959254,87.384,87.27,1.99256795]
[1773166446029,4.15959254,87.409,87.311,4.28914949]
[1773166446233,10.298,87.378,87.314,10.306]
[1773166446427,8.9252176,87.41,87.315,4.28914949]
[1773166446428,4.15959254,87.387,87.315,4.28914949]
[1773166446821,4.15959254,87.409,87.315,4.28914949]
[1773166447027,4.15959254,87.409,87.34,4.28914949]
[1773166447521,4.15959254,87.407,87.343,4.28914949]
[1773166447722,4.15959254,87.429,87.343,4.28914949]
[1773166448632,10.293,87.419,87.356,14.59014949]
[1773166448836,10.293,87.419,87.357,4.28914949]
[1773166449040,4.15959254,87.399,87.331,4.28914949]
[1773166449228,4.15959254,87.398,87.31,8.9252176]
[1773166449435,4.15959254,87.398,87.311,4.28914949]
[1773166449830,4.15959254,87.386,87.326,4.28914949]
[1773166450032,4.15959254,87.379,87.29,13.21436709]
[1773166450227,4.15959254,87.379,87.3,4.28914949]
[1773166450433,4.15959254,87.377,87.312,10.306]
[1773166450629,4.15959254,87.377,87.313,4.28914949]
[1773166450836,10.298,87.376,87.313,4.28914949]
[1773166451028,4.15959254,87.375,87.295,4.28914949]
[1773166451231,4.15959254,87.369,87.295,4.28914949]
[1773166451633,4.15959254,87.349,87.276,4.28914949]
[1773166452337,4.15959254,87.349,87.282,10.309]
[1773166452728,4.15959254,87.349,87.28,10.309]
[1773166452928,4.15959254,87.349,87.292,4.28914949]
[1773166453530,4.15959254,87.349,87.271,4.28914949]
[1773166453734,4.15959254,87.338,87.271,14.60014949]
[1773166454234,10.304,87.326,87.271,4.28914949]
[1773166454439,4.15959254,87.338,87.271,4.28914949]
[1773166454641,4.15959254,87.338,87.251,6.80826016]
[1773166455140,8.9252176,87.32,87.251,6.80826016]
[1773166455344,8.9252176,87.33,87.251,6.80826016]
[1773166455735,8.9252176,87.31,87.231,6.80831494]
[1773166455936,8.9252176,87.31,87.14,160.635]
[1773166455937,160.327,87.309,87.208,6.80831494]
[1773166456141,8.9252176,87.28,87.208,6.80831494]
[1773166456336,8.9252176,87.28,87.18,8.9252176]
[1773166456337,10.309,87.287,87.22,10.317]
[1773166456543,8.9252176,87.3,87.221,6.80003106]
[1773166457748,276.12541195,87.349,87.231,6.80007805]
[1773166457943,9.00280537,87.32,87.231,6.80007805]
[1773166458643,10.306,87.307,87.232,6.74446317]
[1773166458847,160.274,87.337,87.181,6.74446317]
[1773166459043,9.00280537,87.25,87.162,6.74446317]
[1773166459250,9.00280537,87.22,87.141,6.74447071]
[1773166459645,9.00280537,87.24,87.141,6.74447071]
[1773166459948,9.00280537,87.24,87.14,9.00280537]
[1773166460147,9.00280537,87.22,87.12,9.00280537]
[1773166460948,10.316,87.222,87.145,10.325]
[1773166461350,10.316,87.222,87.075,160.756]
[1773166461351,9.00280537,87.23,87.14,9.00280537]
[1773166461648,9.00280537,87.23,87.075,160.756]
[1773166461851,9.00280537,87.23,87.131,5.77565381]
[1773166462045,10.316,87.225,87.14,5.77565381]
[1773166462348,160.394,87.272,87.14,5.77565381]
[1773166462549,160.394,87.272,87.13,9.00280537]
[1773166462550,10.317,87.222,87.149,5.70396733]
[1773166462747,9.00280537,87.24,87.151,5.70396733]
[1773166464251,10.315,87.236,87.157,5.68178719]
[1773166464447,9.00280537,87.24,87.157,5.68178719]
[1773166464748,10.316,87.227,87.157,5.68178719]
[1773166464944,9.00280537,87.24,87.157,5.68178719]
[1773166465351,10.318,87.206,87.157,5.68178719]
[1773166465750,9.00280537,87.22,87.157,5.68178719]
[1773166465949,10.321,87.186,87.138,5.68174228]
[1773166466152,9.00280537,87.18,87.091,5.68487471]
[1773166466350,160.455,87.239,87.091,5.68487471]
[1773166466351,9.00280537,87.2,87.091,5.68487471]
[1773166466651,10.321,87.188,87.123,5.68487471]
[1773166466947,9.00280537,87.2,87.123,5.68487471]
[1773166467147,10.32,87.191,87.123,5.68487471]
[1773166467747,160.425,87.256,87.134,5.68483317]
[1773166467748,10.319,87.201,87.134,5.68483317]
[1773166468047,9.00280537,87.21,87.134,5.68483317]
[1773166468552,10.319,87.203,87.136,5.72511785]
[1773166468953,9.00280537,87.23,87.141,5.72511785]
[1773166469856,9.00280537,87.25,87.157,5.72510771]
[1773166470249,10.316,87.228,87.167,10.323]
[1773166470554,9.00280537,87.23,87.141,5.72726163]
[1773166470750,9.00280537,87.21,87.141,5.72726163]
[1773166470951,9.00280537,87.21,87.116,5.72726163]
[1773166471254,9.00280537,87.19,87.116,5.72726163]
[1773166471854,10.322,87.177,87.116,5.72726163]
[1773166472655,10.322,87.177,87.117,5.67850477]
[1773166472848,9.00280537,87.19,87.117,5.67850477]
[1773166473444,9.00280537,87.19,87.119,5.67846124]
[1773166474056,10.323,87.17,87.119,5.67846124]
[1773166474254,9.00280537,87.17,87.091,5.74152926]
[1773166474444,169.47480537,87.23,87.091,5.74152926]
[1773166474445,160.511,87.209,87.091,5.74152926]
[1773166474649,9.00280537,87.17,87.095,5.74152926]
[1773166475259,10.325,87.148,87.095,5.74152926]
[1773166475454,9.00280537,87.15,87.076,5.74153136]
[1773166475750,9.00280537,87.17,87.088,5.74153136]
[1773166475950,9.00280537,87.19,87.099,5.74153136]
[1773166476353,9.00280537,87.19,87.101,5.72356218]
[1773166476954,10.323,87.168,87.115,5.72356218]
[1773166477146,9.00280537,87.17,87.091,5.723552]
[1773166477452,9.00280537,87.19,87.091,5.723552]
[1773166477656,10.322,87.172,87.111,5.723552]